{"text_format":"1","workbook":"xlsx","n_sheets":1,"sheets":["Price Bid Sheet- WC"],"not_rendered":{"charts":0,"images":0,"macros":1,"external_links":0,"defined_names":0,"comments":0,"pivot_tables":0},"unopened":[],"bounds":{"document_bytes":16777216,"sheet_cells":100000,"rows_first":2000,"rows_last":500,"rows_between":2000,"halvings":0,"cell_chars":16384,"cell_head_chars":4096},"cells_cut":0,"cells_raw":0,"read":"whole","date_system":"1900"}

{"sheet":"Price Bid Sheet- WC","index":0,"n_rows":29,"n_cols":8,"rows_kept":29,"cut":false,"hidden":false,"merged":[[0,0,0,6],[22,2,22,6],[24,1,24,6],[25,1,25,6],[1,0,1,6],[2,0,2,6]]}
["Price Bid Sheet For Works Contract"]
["Miscellaneous Electrical Work in BHEL Factory and Township (Work Contract)  "]
["WEX/TE/TW/22/14 Dt 09.01.2023"]
["Sl. No.","Description of Work","% Allocation (Item-wise)","Unit of Measurement","Quantum of Work","Rate per Unit (in Rs.)","Amount (in Rs.)"]
[" (A)","( B)","( C)","(D)","(E)","(F)","(G=E*F)"]
[1.1000000000000001,"Preparation of earth pits",6.6890427487606791E-2,"Nos",11,{"$f":" ROUNDDOWN( G6/E6,4)","v":0},{"$f":"+($G$22*C6)","v":0}]
[1.2,"Laying and connecting of earthing strips",1.6747485785510612E-3,"Mtr",120,{"$f":" ROUNDDOWN( G7/E7,4)","v":0},{"$f":"+($G$22*C7)","v":0}]
[2.1,"Batten point wiring",1.2979351284284096E-2,"Nos",310,0,0]
[2.2000000000000002,"Conduit point wiring",9.3706438779517467E-2,"Nos",470,0,0]
[2.2999999999999998,"Fixing and connecting Of fan and tube fittings",1.5451591055258651E-2,"Nos",310,0,0]
[2.4,"Fixing and connecting of Distribution Boards",1.6747542700383037E-2,"Nos",60,0,0]
[2.5,"Laying and connecting of sub-main",2.0735055577372923E-2,"Mtr",2000,0,0]
[3.1,"Laying of LT cable",0.2101416611174666,"Mtr",3400,0,0]
[4.0999999999999996,"Erection of poles",1.6548141444840951E-2,"Nos",10,0,0]
[4.2,"Dismantling of poles",6.2803285126436393E-3,"Nos",5,0,0]
[4.3,"Fixing and connecting of street light fittings",1.8781338751629188E-3,"Nos",30,0,0]
[5,"Trimming of trees under and around of overhead HT and LT lines and dispose of the waste material.",3.1612939027097171E-2,"K.M",16,0,0]
[6,"Trimming of trees under and around of street light poles and dispose of the waste material.",4.162958662728157E-2,"Nos",360,0,0]
[7,"Preventive Maint. Of Desert Coolers",3.7143641755027004E-2,"Nos",207,0,0]
[8,"Preventive Maint. Of Ceiling Fans",2.2627133596280043E-2,"Nos",582,0,0]
[9,"Laying of HT Cable ",0.40395330703866228,"Mtr",2000,0,0]
[null,"GROSS TOTAL (Excluding GST) ",{"$f":"SUM(C6:C21)","v":1.0000000284574362},null,null,null,0,"To be quoted by bidder"]
[null,"Total price in words:(Excluding GST)",{"$f":"+RUP(G22)","v":0}]
["Note:"]
[null,"1. Bidder has to quote in above unlocked cell only. Item rate shall be calculated automatically. Calculated item rates upto second decimal point may be adjusted w.r.t. gross total amount and it shall be the itemwise final rate for  execution of contract and all other purposes."]
[null,"2. Quoted gross total amount should be considered only if quoted in this excel sheet and print out of this should only be considered for evaluation.  If Price is quoted in any other format other than the Excel Sheet enclosed to the NIT , the offer of the bidder  will be rejected"]
[]
[]
[null,null,null,null,"( Signature and Seal of the Contractor ) "]